[Event "Julius Baer Generation Cup Prelims 2022"]
[Site "Online"]
[Date "2022.09.14"]
[Round "3.2"]
[White "Duda, Jan-Krzysztof"]
[Black "Saric, Ivan"]
[Result "1-0"]
[ECO "E90"]
[WhiteElo "2731"]
[BlackElo "2668"]
[Annotator "ChessBase"]
[PlyCount "81"]
[EventDate "2022.09.12"]
[EventType "tourn"]
[EventCountry "NET"]
[SourceTitle "playchess.com"]
[Source "ChessBase"]
[SourceQuality "1"]
[TimeControl "900+10"]

1. d4 {[%emt 0:00:00]} Nf6 {[%emt 0:00:00]} 2. c4 {[%emt 0:00:03]} g6 {[%emt 0:00:08]} 3. Nc3 {[%emt 0:00:01]} Bg7 {[%emt 0:00:02]} 4. e4 {[%emt 0:00:01]} d6 {[%emt 0:00:01]} 5. h3 {[%emt 0:00:01]} e5 {[%emt 0:00:01]} 6. d5 {[%emt 0:00:09]} a5 {[%emt 0:00:01]} 7. Be3 {[%emt 0:00:14]} Na6 {[%emt 0:00:01]} 8. Nf3 {[%emt 0:00:00]} O-O {[%emt 0:00:18]} 9. g4 {[%emt 0:00:14]} Nd7 {[%emt 0:00:08]} 10. g5 {[%emt 0:00:19]} Ndc5 {[%emt 0:00:22]} 11. h4 {[%emt 0:00:06]} Bg4 {[%emt 0:00:25]} 12. Be2 {[%emt 0:00:08]} f5 {[%emt 0:00:36]} 13. Nh2 {[%emt 0:02:44]} Bxe2 {[%emt 0:00:31]} 14. Qxe2 {[%emt 0:00:00]} fxe4 {[%emt 0:00:06]} 15. O-O-O {[%emt 0:00:02]} Qd7 {[%emt 0:00:34]} 16. h5 {[%emt 0:00:06]} Qf5 {[%emt 0:01:16]} 17. Kb1 {[%emt 0:01:01]} Nd3 {[%emt 0:00:54]} 18. h6 {[%emt 0:00:34]} Bh8 {[%emt 0:00:03]} 19. Rd2 {[%emt 0:00:16]} Rae8 {[%emt 0:00:43]} 20. Rg1 {[%emt 0:00:15]} Nac5 {[%emt 0:01:05]} 21. Nf1 {[%emt 0:00:20]} Qf3 {[%emt 0:00:28]} 22. Ng3 {[%emt 0:00:35]} b6 {[%emt 0:02:19]} 23. Bxc5 {[%emt 0:02:09]} Nxc5 {[%emt 0:00:05]} 24. Ngxe4 {[%emt 0:00:20]} Nxe4 {[%emt 0:00:23]} 25. Nxe4 {[%emt 0:00:00]} Qxe2 {[%emt 0:01:10]} 26. Rxe2 {[%emt 0:00:00]} Rf4 {[%emt 0:00:02]} 27. Rg3 {[%emt 0:00:13]} Ref8 {[%emt 0:00:03]} 28. Kc2 {[%emt 0:00:17]} Kf7 {[%emt 0:00:15]} 29. Kb3 {[%emt 0:00:39]} Ke7 {[%emt 0:00:01]} 30. Ka4 {[%emt 0:00:00]} Kd7 {[%emt 0:00:09]} 31. Kb5 {[%emt 0:00:02]} Rh4 {[%emt 0:00:43]} 32. a3 {[%emt 0:00:16]} Rff4 {[%emt 0:00:07]} 33. Rge3 {[%emt 0:00:08]} Rh1 {[%emt 0:00:25]} 34. Re1 {[%emt 0:00:10]} Rxe1 {[%emt 0:00:56]} 35. Rxe1 {[%emt 0:00:00]} Rh4 {[%emt 0:00:01]} 36. b3 {[%emt 0:00:23]} Rh3 {[%emt 0:00:13]} 37. Re3 {[%emt 0:00:02]} Rh1 {[%emt 0:00:01]} 38. Rf3 {[%emt 0:00:08]} Re1 {[%emt 0:00:12]} 39. Rf7+ {[%emt 0:00:09]} Ke8 {[%emt 0:00:05]} 40. Rxh7 {[%emt 0:00:08]} Rxe4 {[%emt 0:00:11]} 41. Rxh8+ {[%emt 0:00:00]} 1-0

[Event "Julius Baer Generation Cup Prelims 2022"]
[Site "Online"]
[Date "2022.09.14"]
[Round "3.3"]
[White "Gelfand, Boris"]
[Black "Praggnanandhaa R"]
[Result "0-1"]
[ECO "E04"]
[WhiteElo "2668"]
[BlackElo "2676"]
[Annotator "ChessBase"]
[PlyCount "82"]
[EventDate "2022.09.12"]
[EventType "tourn"]
[EventCountry "NET"]
[SourceTitle "playchess.com"]
[Source "ChessBase"]
[SourceQuality "1"]
[TimeControl "900+10"]

1. d4 {[%emt 0:00:00]} Nf6 {[%emt 0:00:00]} 2. c4 {[%emt 0:00:02]} e6 {[%emt 0:00:01]} 3. Nf3 {[%emt 0:00:01]} d5 {[%emt 0:00:01]} 4. g3 {[%emt 0:00:00]} dxc4 {[%emt 0:00:00]} 5. Bg2 {[%emt 0:00:02]} a6 {[%emt 0:00:01]} 6. Ne5 {[%emt 0:00:02]} Bb4+ {[%emt 0:00:16]} 7. Nc3 {[%emt 0:00:01]} Nd5 {[%emt 0:00:02]} 8. O-O {[%emt 0:00:02]} O-O {[%emt 0:00:45]} 9. Ne4 {[%emt 0:00:10]} b5 {[%emt 0:00:30]} 10. b3 {[%emt 0:00:02]} cxb3 {[%emt 0:01:18]} 11. axb3 {[%emt 0:00:02]} Bb7 {[%emt 0:01:35]} 12. Qc2 {[%emt 0:00:25]} h6 {[%emt 0:00:52]} 13. Nd3 {[%emt 0:00:34]} Nd7 {[%emt 0:00:18]} 14. Bd2 {[%emt 0:02:25]} Bxd2 {[%emt 0:01:20]} 15. Qxd2 {[%emt 0:00:03]} Ne7 {[%emt 0:00:02]} 16. Rfc1 {[%emt 0:01:22]} Ra7 {[%emt 0:00:21]} 17. Nec5 {[%emt 0:04:21]} Bxg2 {[%emt 0:00:13]} 18. Kxg2 {[%emt 0:00:02]} Nxc5 {[%emt 0:00:45]} 19. Nxc5 {[%emt 0:00:02]} e5 {[%emt 0:00:11]} 20. Rd1 {[%emt 0:00:23]} exd4 {[%emt 0:00:44]} 21. Qxd4 {[%emt 0:00:07]} Qxd4 {[%emt 0:00:03]} 22. Rxd4 {[%emt 0:00:01]} a5 {[%emt 0:00:01]} 23. e4 {[%emt 0:03:20]} Rfa8 {[%emt 0:00:40]} 24. e5 {[%emt 0:00:55]} Nc6 {[%emt 0:00:46]} 25. Re4 {[%emt 0:00:03]} Nd8 {[%emt 0:01:25]} 26. Rd4 {[%emt 0:02:21]} Nb7 {[%emt 0:02:43]} 27. Nxb7 {[%emt 0:01:07]} Rxb7 {[%emt 0:00:02]} 28. Rc1 {[%emt 0:00:18]} a4 {[%emt 0:00:55]} 29. bxa4 {[%emt 0:00:31]} bxa4 {[%emt 0:00:01]} 30. Ra1 {[%emt 0:00:03]} a3 {[%emt 0:00:07]} 31. Rd3 {[%emt 0:00:01]} a2 {[%emt 0:00:08]} 32. Rd2 {[%emt 0:00:01]} Rba7 {[%emt 0:00:22]} 33. f4 {[%emt 0:00:01]} Kf8 {[%emt 0:01:14]} 34. Kh3 {[%emt 0:00:01]} c5 {[%emt 0:00:21]} 35. Rc2 {[%emt 0:00:06]} Ra5 {[%emt 0:00:04]} 36. Kg4 {[%emt 0:00:01]} Ke7 {[%emt 0:00:03]} 37. h4 {[%emt 0:00:05]} Kd7 {[%emt 0:00:30]} 38. Kf5 {[%emt 0:00:10]} Kc6 {[%emt 0:00:03]} 39. e6 {[%emt 0:00:16]} fxe6+ {[%emt 0:00:45]} 40. Kxe6 {[%emt 0:00:01]} Ra3 {[%emt 0:00:04]} 41. g4 {[%emt 0:01:12]} Rf8 {[%emt 0:00:09]} 0-1

[Event "Julius Baer Generation Cup Prelims 2022"]
[Site "Online"]
[Date "2022.09.14"]
[Round "3.4"]
[White "Yoo, Christopher Woojin"]
[Black "Aronian, Levon"]
[Result "1/2-1/2"]
[ECO "C47"]
[WhiteElo "2563"]
[BlackElo "2759"]
[Annotator "ChessBase"]
[PlyCount "87"]
[EventDate "2022.09.12"]
[EventType "tourn"]
[EventCountry "NET"]
[SourceTitle "playchess.com"]
[Source "ChessBase"]
[SourceQuality "1"]
[TimeControl "900+10"]

1. e4 {[%emt 0:00:00]} e5 {[%emt 0:00:00]} 2. Nf3 {[%emt 0:00:02]} Nc6 {[%emt 0:00:01]} 3. d4 {[%emt 0:00:01]} exd4 {[%emt 0:00:01]} 4. Nxd4 {[%emt 0:00:00]} Nf6 {[%emt 0:00:02]} 5. Nc3 {[%emt 0:00:01]} Bb4 {[%emt 0:00:02]} 6. Nxc6 {[%emt 0:00:01]} bxc6 {[%emt 0:00:01]} 7. Bd3 {[%emt 0:00:00]} O-O {[%emt 0:00:10]} 8. O-O {[%emt 0:00:03]} Re8 {[%emt 0:00:01]} 9. Bg5 {[%emt 0:00:03]} h6 {[%emt 0:00:02]} 10. Bh4 {[%emt 0:00:02]} Bxc3 {[%emt 0:00:01]} 11. bxc3 {[%emt 0:00:02]} g5 {[%emt 0:00:00]} 12. Bg3 {[%emt 0:00:06]} Nxe4 {[%emt 0:00:01]} 13. f4 {[%emt 0:01:38]} d6 {[%emt 0:00:21]} 14. Qh5 {[%emt 0:00:35]} Bf5 {[%emt 0:00:02]} 15. Be1 {[%emt 0:02:02]} Re6 {[%emt 0:01:50]} 16. fxg5 {[%emt 0:02:43]} Bg6 {[%emt 0:00:02]} 17. Qxh6 {[%emt 0:00:01]} Qxg5 {[%emt 0:00:06]} 18. Qxg5 {[%emt 0:00:23]} Nxg5 {[%emt 0:00:00]} 19. Rb1 {[%emt 0:00:04]} Rae8 {[%emt 0:02:53]} 20. Bh4 {[%emt 0:00:27]} Bxd3 {[%emt 0:00:50]} 21. cxd3 {[%emt 0:00:04]} Rg6 {[%emt 0:00:08]} 22. Rb7 {[%emt 0:01:20]} Re2 {[%emt 0:00:27]} 23. Rxc7 {[%emt 0:02:11]} Rxg2+ {[%emt 0:01:12]} 24. Kxg2 {[%emt 0:00:30]} Ne6+ {[%emt 0:00:02]} 25. Bg3 {[%emt 0:01:10]} Nxc7 {[%emt 0:00:00]} 26. c4 {[%emt 0:00:10]} Ne6 {[%emt 0:00:10]} 27. Rf5 {[%emt 0:00:05]} Nc5 {[%emt 0:00:11]} 28. d4 {[%emt 0:00:20]} Ne4 {[%emt 0:00:11]} 29. Ra5 {[%emt 0:00:52]} Nxg3 {[%emt 0:00:02]} 30. hxg3 {[%emt 0:00:00]} Rg4 {[%emt 0:00:00]} 31. d5 {[%emt 0:00:23]} Rxc4 {[%emt 0:00:02]} 32. dxc6 {[%emt 0:00:02]} Rxc6 {[%emt 0:00:00]} 33. Rxa7 {[%emt 0:00:01]} Rc3 {[%emt 0:00:01]} 34. a4 {[%emt 0:00:05]} d5 {[%emt 0:00:01]} 35. Rd7 {[%emt 0:00:01]} Ra3 {[%emt 0:00:02]} 36. Rxd5 {[%emt 0:00:02]} Rxa4 {[%emt 0:00:00]} 37. Kf3 {[%emt 0:00:00]} Kf8 {[%emt 0:00:03]} 38. Rf5 {[%emt 0:00:02]} Kg8 {[%emt 0:00:01]} 39. Rf4 {[%emt 0:00:01]} Rxf4+ {[%emt 0:00:06]} 40. Kxf4 {[%emt 0:00:00]} Kg7 {[%emt 0:00:02]} 41. Kf5 {[%emt 0:00:03]} f6 {[%emt 0:00:01]} 42. g4 {[%emt 0:00:02]} Kf7 {[%emt 0:00:01]} 43. g5 {[%emt 0:00:01]} fxg5 {[%emt 0:00:00]} 44. Kxg5 {[%emt 0:00:00]} 1/2-1/2

[Event "Julius Baer Generation Cup Prelims 2022"]
[Site "Online"]
[Date "2022.09.14"]
[Round "3.6"]
[White "Keymer, Vincent"]
[Black "Navara, David"]
[Result "1-0"]
[ECO "A20"]
[WhiteElo "2693"]
[BlackElo "2681"]
[Annotator "ChessBase"]
[PlyCount "85"]
[EventDate "2022.09.12"]
[EventType "tourn"]
[EventCountry "NET"]
[SourceTitle "playchess.com"]
[Source "ChessBase"]
[SourceQuality "1"]
[TimeControl "900+10"]

1. c4 {[%emt 0:00:00]} e5 {[%emt 0:00:00]} 2. d3 {[%emt 0:00:02]} Nf6 {[%emt 0:00:04]} 3. Nf3 {[%emt 0:00:01]} Nc6 {[%emt 0:00:01]} 4. a3 {[%emt 0:00:01]} d5 {[%emt 0:00:07]} 5. cxd5 {[%emt 0:00:02]} Nxd5 {[%emt 0:00:00]} 6. e4 {[%emt 0:00:00]} Nf6 {[%emt 0:00:16]} 7. Be2 {[%emt 0:00:02]} Bg4 {[%emt 0:00:20]} 8. Nbd2 {[%emt 0:00:32]} a5 {[%emt 0:00:12]} 9. h3 {[%emt 0:00:23]} Be6 {[%emt 0:01:14]} 10. O-O {[%emt 0:01:51]} Bc5 {[%emt 0:00:18]} 11. Qc2 {[%emt 0:00:41]} Nd7 {[%emt 0:02:15]} 12. Nb3 {[%emt 0:00:21]} Bb6 {[%emt 0:00:46]} 13. Be3 {[%emt 0:01:08]} a4 {[%emt 0:00:02]} 14. Nbd2 {[%emt 0:01:02]} O-O {[%emt 0:00:47]} 15. Rac1 {[%emt 0:00:36]} f6 {[%emt 0:01:35]} 16. Nc4 {[%emt 0:01:17]} Bxe3 {[%emt 0:00:10]} 17. fxe3 {[%emt 0:00:24]} Nc5 {[%emt 0:00:50]} 18. Ncd2 {[%emt 0:02:52]} Nb3 {[%emt 0:00:41]} 19. Nxb3 {[%emt 0:00:05]} Bxb3 {[%emt 0:00:00]} 20. Qc3 {[%emt 0:00:01]} Qe7 {[%emt 0:02:11]} 21. Nd2 {[%emt 0:00:33]} Bf7 {[%emt 0:00:10]} 22. d4 {[%emt 0:00:58]} exd4 {[%emt 0:04:28]} 23. exd4 {[%emt 0:00:00]} Nd8 {[%emt 0:00:01]} 24. Qxc7 {[%emt 0:01:02]} Qxc7 {[%emt 0:00:00]} 25. Rxc7 {[%emt 0:00:01]} Ne6 {[%emt 0:00:00]} 26. Rc4 {[%emt 0:01:30]} Rfc8 {[%emt 0:00:02]} 27. d5 {[%emt 0:00:03]} Rxc4 {[%emt 0:00:16]} 28. Nxc4 {[%emt 0:00:12]} Nc5 {[%emt 0:00:31]} 29. Bf3 {[%emt 0:00:05]} Bg6 {[%emt 0:00:53]} 30. Re1 {[%emt 0:03:03]} b5 {[%emt 0:00:29]} 31. Nd6 {[%emt 0:00:02]} Rb8 {[%emt 0:00:39]} 32. Rc1 {[%emt 0:00:35]} Nd3 {[%emt 0:00:02]} 33. Rc2 {[%emt 0:00:01]} b4 {[%emt 0:00:36]} 34. axb4 {[%emt 0:00:08]} Kf8 {[%emt 0:00:00]} 35. b5 {[%emt 0:00:10]} Ke7 {[%emt 0:00:25]} 36. Nc8+ {[%emt 0:00:02]} Kd8 {[%emt 0:00:01]} 37. Na7 {[%emt 0:00:04]} Kd7 {[%emt 0:00:30]} 38. Bg4+ {[%emt 0:00:19]} Kd6 {[%emt 0:00:01]} 39. Rc6+ {[%emt 0:00:01]} Ke5 {[%emt 0:00:09]} 40. d6 {[%emt 0:00:46]} Nxb2 {[%emt 0:00:26]} 41. d7 {[%emt 0:00:03]} a3 {[%emt 0:00:13]} 42. Ra6 {[%emt 0:00:08]} Bxe4 {[%emt 0:00:25]} 43. Nc8 {[%emt 0:00:03]} 1-0

[Event "Julius Baer Generation Cup Prelims 2022"]
[Site "Online"]
[Date "2022.09.14"]
[Round "3.7"]
[White "Erigaisi Arjun"]
[Black "Le, Quang Liem"]
[Result "1-0"]
[ECO "C45"]
[WhiteElo "2725"]
[BlackElo "2728"]
[Annotator "ChessBase"]
[PlyCount "63"]
[EventDate "2022.09.12"]
[EventType "tourn"]
[EventCountry "NET"]
[SourceTitle "playchess.com"]
[Source "ChessBase"]
[SourceQuality "1"]
[TimeControl "900+10"]

1. e4 {[%emt 0:00:00]} e5 {[%emt 0:00:00]} 2. Nf3 {[%emt 0:00:02]} Nc6 {[%emt 0:00:01]} 3. d4 {[%emt 0:00:01]} exd4 {[%emt 0:00:01]} 4. Nxd4 {[%emt 0:00:00]} Nf6 {[%emt 0:00:01]} 5. Nxc6 {[%emt 0:00:02]} bxc6 {[%emt 0:00:00]} 6. e5 {[%emt 0:00:01]} Qe7 {[%emt 0:00:01]} 7. Qe2 {[%emt 0:00:00]} Nd5 {[%emt 0:00:01]} 8. Nd2 {[%emt 0:00:01]} g6 {[%emt 0:00:14]} 9. c4 {[%emt 0:00:02]} Nf4 {[%emt 0:01:45]} 10. Qe3 {[%emt 0:00:02]} Ne6 {[%emt 0:00:18]} 11. b3 {[%emt 0:00:14]} Bg7 {[%emt 0:00:30]} 12. Bb2 {[%emt 0:00:03]} O-O {[%emt 0:00:09]} 13. Ne4 {[%emt 0:00:13]} d5 {[%emt 0:02:43]} 14. Nf6+ {[%emt 0:00:19]} Bxf6 {[%emt 0:00:14]} 15. exf6 {[%emt 0:00:00]} Qb4+ {[%emt 0:00:03]} 16. Bc3 {[%emt 0:01:06]} Qd6 {[%emt 0:00:08]} 17. O-O-O {[%emt 0:02:09]} a5 {[%emt 0:00:29]} 18. h4 {[%emt 0:00:35]} a4 {[%emt 0:00:20]} 19. b4 {[%emt 0:01:52]} d4 {[%emt 0:00:58]} 20. Qh6 {[%emt 0:01:16]} c5 {[%emt 0:00:09]} 21. Bd2 {[%emt 0:01:59]} d3 {[%emt 0:02:04]} 22. h5 {[%emt 0:01:27]} Qd4 {[%emt 0:02:41]} 23. Kb1 {[%emt 0:00:03]} a3 {[%emt 0:00:02]} 24. Bc1 {[%emt 0:00:02]} Qxc4 {[%emt 0:00:53]} 25. Rxd3 {[%emt 0:00:20]} Ba6 {[%emt 0:00:35]} 26. hxg6 {[%emt 0:01:55]} Qxd3+ {[%emt 0:00:03]} 27. Bxd3 {[%emt 0:00:00]} Bxd3+ {[%emt 0:00:02]} 28. Ka1 {[%emt 0:00:00]} Bxg6 {[%emt 0:00:01]} 29. f4 {[%emt 0:00:19]} Rfb8 {[%emt 0:03:56]} 30. g4 {[%emt 0:00:05]} Be4 {[%emt 0:00:05]} 31. f5 {[%emt 0:00:12]} Rxb4 {[%emt 0:00:09]} 32. Qxh7+ {[%emt 0:00:02]} 1-0

[Event "Julius Baer Generation Cup Prelims 2022"]
[Site "Online"]
[Date "2022.09.14"]
[Round "3.8"]
[White "Carlsen, Magnus"]
[Black "Adhiban, B.."]
[Result "1-0"]
[ECO "A04"]
[WhiteElo "2861"]
[BlackElo "2603"]
[Annotator "TA"]
[PlyCount "105"]
[EventDate "2022.09.12"]
[EventType "tourn"]
[EventCountry "NET"]
[SourceTitle "playchess.com"]
[Source "ChessBase"]
[SourceQuality "1"]
[TimeControl "900+10"]

{[%evp 9,105,4,14,9,9,19,27,12,0,0,36,28,32,17,29,29,45,44,51,44,52,44,53,44,45,32,62,36,37,35,41,27,50,44,47,16,28,12,32,7,0,0,0,0,24,12,38,20,76,67,76,33,18,18,20,52,135,0,0,0,0,-52,-29,-31,-32,-123,-118,-134,0,0,0,0,0,0,0,-14,-5,-8,0,-181,-181,-173,0,0,0,0,28,28,139,128,291,302,287,281,285,286,669,658]} 1. Nf3 {[%emt 0:00:00]} f5 {[%emt 0:00:00]} 2. b4 {[%emt 0:00:51]} e5 {[%emt 0:03:24]} ({Predecessor:} 2... d6 3. d4 Nf6 4. Bb2 g6 5. e3 Bg7 6. Be2 O-O 7. Nbd2 e6 8. c4 Qe7 9. Rc1 c6 10. b5 {1-0 (39) Meskovs,N (2585)-Omelja,A (2499) Chess.com INT 2020}) 3. Nxe5 {[%emt 0:00:03]} Bxb4 {[%emt 0:00:01]} 4. g3 {[%emt 0:00:18]} Nc6 {[%emt 0:00:13]} 5. Bb2 {[%emt 0:00:15]} Nxe5 {[%emt 0:02:30]} 6. Bxe5 {[%emt 0:00:01] A04: Unusual lines after 1 Nf3 and King's Indian Attack.} Qe7 {[%emt 0:00:01]} 7. Bb2 {[%emt 0:00:33]} d5 {[%emt 0:00:42]} 8. Bg2 {[%emt 0:00:02] White has an edge.} c6 {[%emt 0:00:01]} 9. e3 {[%emt 0:01:00]} Nf6 {[%emt 0:00:05]} 10. O-O {[%emt 0:01:55]} Be6 {[%emt 0:00:48]} 11. Nc3 {[%emt 0:00:26]} O-O {[%emt 0:00:35]} 12. Ne2 {[%emt 0:00:03]} Rad8 {[%emt 0:00:27]} 13. a4 {[%emt 0:00:14][%cal Ba2a4,Ba4a5][%mdl 32]} Bd6 {[%emt 0:01:26]} 14. d3 {[%emt 0:00:20]} Bc8 {[%emt 0:00:10]} 15. a5 {[%emt 0:00:29]} Rfe8 {[%emt 0:00:57]} 16. Qc1 {[%emt 0:00:22]} Qf7 {[%emt 0:00:04]} 17. Bd4 {[%emt 0:00:07]} Bb8 {[%emt 0:00:03]} 18. Qb2 {[%emt 0:00:14]} Ng4 {[%emt 0:00:04]} 19. Qc3 {[%emt 0:00:54][%cal Oa5a6]} a6 {[%emt 0:01:35]} 20. Rab1 {[%emt 0:00:25]} Re7 {[%emt 0:00:48]} 21. h3 {[%emt 0:01:51]} Ne5 {[%emt 0:00:02]} 22. Kh1 {[%emt 0:01:39]} Rde8 {[%emt 0:00:30]} 23. Ng1 {[%emt 0:00:14][%cal Be2g1,Bg1f3,Bf3h4][%mdl 32]} Re6 {[%emt 0:00:30]} 24. f4 {[%emt 0:00:32]} Nd7 {[%emt 0:00:02]} 25. Nf3 {[%emt 0:00:02]} h6 {[%emt 0:00:06] Inhibits Ng5.} 26. Rfe1 {[%emt 0:00:18]} Bd6 {[%emt 0:00:24]} (26... c5 $5 {[%cal Rc5d4]} 27. Bxc5 Rc6 $11) 27. Qd2 {[%emt 0:00:14]} Kh7 {[%emt 0:00:20]} 28. Kh2 {[%emt 0:00:01]} Qe7 {[%emt 0:00:09]} (28... Rg8 $11) 29. Nh4 $16 {[%emt 0:01:08]} Qf7 {[%emt 0:01:13]} 30. e4 {[%emt 0:00:26]} fxe4 {[%emt 0:00:08]} 31. dxe4 {[%emt 0:00:04]} dxe4 {[%emt 0:00:02]} 32. f5 {[%emt 0:00:10]} Rf6 {[%emt 0:01:11]} 33. Bxf6 {[%emt 0:00:24]} (33. Bxe4 Ne5 $14) (33. Rxe4 $16 Rxe4 34. Bxe4) 33... Qxf6 $11 {[%emt 0:00:00]} 34. Bxe4 {[%emt 0:02:49]} Nc5 {[%emt 0:00:02][%cal Bd7c5,Bc5d3,Bd3e1][%mdl 32]} 35. Bf3 {[%emt 0:01:22]} Rd8 $15 {[%emt 0:00:08] Threatens to win with ...Bxg3+.} 36. Qb4 {[%emt 0:00:31]} Nd3 $1 {[%emt 0:00:44][%mdl 64] Discovered Attack, Deflection, Double Attack} 37. Qg4 {[%emt 0:00:02]} Nxe1 $17 {[%emt 0:00:29]} 38. Rxe1 {[%emt 0:00:00]} Be5 {[%emt 0:00:59]} (38... Bc7 $17 39. Be4 Bxa5) 39. Re2 $11 {[%emt 0:00:18]} Kg8 {[%emt 0:00:23]} 40. Qc4+ {[%emt 0:00:27]} Kh7 {[%emt 0:00:01] White must now prevent ...Rd4.} 41. Bh5 {[%emt 0:00:14]} Bc7 {[%emt 0:00:28]} (41... Bxf5 $2 42. Nxf5 Qxf5 43. Bg4 Bxg3+ 44. Kxg3 Qxa5 45. Qf7 $18) 42. Bg6+ {[%emt 0:00:18]} Kh8 {[%emt 0:00:01]} 43. Qe4 {[%emt 0:00:06]} Bd7 {[%emt 0:00:08]} 44. Qb4 $2 {[%emt 0:00:26]} (44. Nf3 $11) 44... c5 $1 $19 {[%emt 0:00:20]} 45. Qxb7 {[%emt 0:00:17] [#]} Qd6 {[%emt 0:00:04]} (45... Bb5 $1 $19 {And now ...Bxg3+ would win.} 46. Qxc7 (46. Re6 Qxh4 47. Re3 Rd2+) 46... Bxe2 47. Qxc5 Bb5) 46. Qf3 $11 {[%emt 0:00:06][%cal Of5f6] Active counter play!} Bc6 {[%emt 0:00:01] A strong pair of Bishops.} 47. Qe3 {[%emt 0:00:01]} Qd1 {[%emt 0:00:15][%csl Gc6][%cal Rd1h1]} 48. Ng2 {[%emt 0:00:02]} Rf8 {[%emt 0:00:09]} (48... Bxa5 $2 49. f6 Qd6 50. fxg7+ Kxg7 51. Nh4 $18) (48... Qf1 49. Rf2 Qa1 50. f6 $16) (48... Qd4 $11 {keeps the balance.}) 49. f6 {[%emt 0:00:05]} Qd6 $2 {[%emt 0:00:10] Loses the game.} (49... Rxf6 $2 {[#]} 50. Qe8+ $3 {[%mdl 512]} Bxe8 51. Rxe8+) (49... Bxg2 $16 {was necessary.} 50. Rxg2 Qd6) 50. fxg7+ $18 {[%emt 0:00:10]} Kxg7 {[%emt 0:00:00]} 51. Nf4 {[%emt 0:00:10] Dancing on a razor blade.} ({And not} 51. Nh4 Rf1 52. Qc3+ (52. Nf5+ Kf6 $17) (52. Qe7+ $2 Qxe7 53. Rxe7+ Kf8 $19) 52... Qd4 53. Qxd4+ (53. Nf5+ Kxg6) 53... cxd4 $11) 51... Rxf4 {[%emt 0:00:12]} 52. Qxf4 {[%emt 0:00:01]} Qd7 {[%emt 0:00:31] Inhibits Qf7+.} (52... Kxg6 $2 53. Qxd6+ Bxd6 54. Re6+ Kf5 55. Rxd6 $18) (52... Qxf4 53. gxf4 Bxf4+ 54. Kg1 Kf6) 53. Bf5 {[%emt 0:00:09] Weighted Error Value: White=0.21 (precise) /Black=0.36} 1-0

[Event "Julius Baer Generation Cup Prelims 2022"]
[Site "Online"]
[Date "2022.09.14"]
[Round "4.1"]
[White "Giri, Anish"]
[Black "Adhiban, B.."]
[Result "1-0"]
[ECO "A80"]
[WhiteElo "2764"]
[BlackElo "2603"]
[Annotator "ChessBase"]
[PlyCount "61"]
[EventDate "2022.09.12"]
[EventType "tourn"]
[EventCountry "NET"]
[SourceTitle "playchess.com"]
[Source "ChessBase"]
[SourceQuality "1"]
[TimeControl "900+10"]

1. d4 {[%emt 0:00:00]} f5 {[%emt 0:00:00]} 2. Bg5 {[%emt 0:00:02]} h6 {[%emt 0:00:02]} 3. Bh4 {[%emt 0:00:02]} g5 {[%emt 0:00:01]} 4. e3 {[%emt 0:00:17]} Bg7 {[%emt 0:00:02]} 5. Bg3 {[%emt 0:00:01]} c5 {[%emt 0:00:02]} 6. c3 {[%emt 0:00:04]} Qb6 {[%emt 0:00:02]} 7. Nd2 {[%emt 0:00:42]} cxd4 {[%emt 0:00:35]} 8. cxd4 {[%emt 0:00:07]} Nf6 {[%emt 0:00:46]} 9. Bd3 {[%emt 0:01:48]} d5 {[%emt 0:03:53]} 10. h4 {[%emt 0:02:01]} Nc6 {[%emt 0:01:36]} 11. hxg5 {[%emt 0:00:48]} hxg5 {[%emt 0:00:00]} 12. Rxh8+ {[%emt 0:00:02]} Bxh8 {[%emt 0:00:00]} 13. Ngf3 {[%emt 0:02:15]} g4 {[%emt 0:00:05]} 14. Nh4 {[%emt 0:00:05]} Ne4 {[%emt 0:00:21]} 15. Nxe4 {[%emt 0:02:22]} dxe4 {[%emt 0:00:06]} 16. Be2 {[%emt 0:00:01]} Qxb2 {[%emt 0:02:55]} 17. Kf1 {[%emt 0:00:07]} Bf6 {[%emt 0:01:34]} 18. Rb1 {[%emt 0:01:33]} Qxa2 {[%emt 0:00:02]} 19. d5 {[%emt 0:01:14]} Ne5 {[%emt 0:00:03]} 20. Bb5+ {[%emt 0:00:10]} Kf7 {[%emt 0:00:21]} 21. d6 {[%emt 0:01:15]} exd6 {[%emt 0:01:55]} 22. Rc1 {[%emt 0:00:04]} Qa5 {[%emt 0:01:33]} 23. Qd5+ {[%emt 0:00:34]} Kg7 {[%emt 0:00:02]} 24. Kg1 {[%emt 0:00:21]} Qd8 {[%emt 0:01:05]} 25. Bc4 {[%emt 0:02:03]} Nxc4 {[%emt 0:02:09]} 26. Rxc4 {[%emt 0:00:05]} Qd7 {[%emt 0:00:05]} 27. Nxf5+ {[%emt 0:00:34]} Qxf5 {[%emt 0:00:07]} 28. Rc7+ {[%emt 0:00:01]} Kh6 {[%emt 0:00:09]} 29. Bf4+ {[%emt 0:00:26]} Kh5 {[%emt 0:00:02]} 30. Rh7+ {[%emt 0:00:08]} Kg6 {[%emt 0:00:06]} 31. Qf7# {[%emt 0:00:01]} 1-0